bitfinex/quotes_SOLUSD_20260223
["timestamp","ask_amount","ask_price","bid_price","bid_amount"]
[1771863201211,12.64761048,79.067,79.001,0.62283303]
[1771863201212,14.51477626,79.03,79.001,0.62283303]
[1771863201408,0.5,79.026,79.001,0.62283303]
[1771863201801,0.5,79.026,78.992,12.65950982]
[1771863201802,0.5,79.026,79.011,0.62283303]
[1771863202010,0.5,79.026,78.992,44.30828437]
[1771863202011,12.64761048,79.067,79.021,0.62283303]
[1771863202307,14.51477626,79.14,79.01,14.51477626]
[1771863202308,14.51477626,79.04,79.01,14.51477626]
[1771863202512,15.04209331,79.04,79.0,14.51477626]
[1771863202910,12.6503814,79.049,79.01,14.51477626]
[1771863203124,0.5,79.006,78.99,14.51477626]
[1771863204331,14.51477626,79.03,79.0,14.51477626]
[1771863204508,14.51477626,79.02,78.986,12.66041264]
[1771863204707,14.51477626,79.02,78.99,14.51477626]
[1771863205220,0.53064101,79.029,78.991,0.60339209]
[1771863205430,14.51477626,79.05,79.02,14.51477626]
[1771863205607,13.18217573,79.052,79.02,14.51477626]
[1771863206004,12.64990133,79.052,79.021,0.60339209]
[1771863206429,12.64878128,79.059,79.021,0.60339209]
[1771863207816,12.64878128,79.059,79.023,0.60339209]
[1771863208432,12.64778213,79.066,79.031,0.60339209]
[1771863208613,12.64778213,79.066,79.04,14.51477626]
[1771863208815,12.64778213,79.066,79.031,0.60339209]
[1771863209742,12.64778213,79.066,79.04,14.51477626]
[1771863209913,12.64680732,79.072,79.05,14.51477626]
[1771863210311,12.64680732,79.072,79.041,0.60339209]
[1771863210735,12.64680732,79.072,79.032,12.65310254]
[1771863210736,0.5,79.099,79.061,0.60339209]
[1771863211027,12.64302366,79.096,79.07,14.51477626]
[1771863211225,0.5,79.099,79.08,14.51477626]
[1771863211433,0.5,79.099,79.081,0.60339209]
[1771863212010,0.54267432,79.098,79.036,3.69383402]
[1771863212233,0.54267432,79.098,78.999,50.63316875]
[1771863212234,14.51477626,79.08,79.041,0.60339209]
[1771863212533,44.24890641,79.098,79.051,0.60339209]
[1771863212740,0.5,79.099,79.08,14.51477626]
[1771863213041,12.64254469,79.098,79.07,14.51477626]
[1771863213217,0.5,79.099,79.07,14.51477626]
[1771863214136,0.5,79.099,79.07,25.82556622]
[1771863214717,0.5,79.099,79.071,0.60339209]
[1771863214919,14.51477626,79.09,79.053,0.60339209]
[1771863215920,12.64398336,79.089,79.053,13.25310689]
[1771863216320,12.64398336,79.089,79.06,14.51477626]
[1771863216535,1.04953886,79.099,79.06,14.51477626]
[1771863217435,1.04953886,79.099,79.071,0.60339209]
[1771863217741,12.64254469,79.098,79.061,0.60339209]
[1771863217922,14.51477626,79.09,79.061,0.60339209]
[1771863218122,12.64398336,79.089,79.061,0.60339209]
[1771863218323,12.64270452,79.097,79.07,14.51477626]
[1771863218523,12.64270452,79.097,79.061,13.25175319]
[1771863219538,14.51477626,79.09,79.06,14.51477626]
[1771863219724,12.64270452,79.097,79.061,0.60339209]
[1771863220237,0.5,79.099,79.061,0.60339209]
[1771863220238,0.5,79.099,79.071,0.60339209]
[1771863220438,0.5,79.099,79.08,14.51477626]
[1771863221038,0.5,79.099,79.07,14.51477626]
[1771863221039,12.64254469,79.098,79.07,14.51477626]
[1771863221239,12.64254469,79.098,79.062,0.60339209]
[1771863221549,44.24890641,79.098,79.062,0.60339209]
[1771863221845,14.51477626,79.09,79.062,0.60339209]
[1771863222343,0.55925883,79.097,79.062,13.25169342]
[1771863222745,14.51477626,79.09,79.062,0.60339209]
[1771863222952,0.56081433,79.095,79.062,0.60339209]
[1771863223147,0.56235196,79.079,79.04,14.51477626]
[1771863223333,14.51477626,79.07,79.04,14.51477626]
[1771863224235,0.56235196,79.079,79.04,14.51477626]
[1771863224629,0.56235196,79.079,79.04,15.11816835]
[1771863225259,14.51477626,79.06,79.03,15.11816835]
[1771863225747,44.2651355,79.069,79.001,0.60339209]
[1771863225748,0.56537444,79.039,79.001,0.60339209]
[1771863225940,14.51477626,79.03,79.001,0.60339209]
[1771863226144,3.69383402,79.066,79.001,0.60339209]
[1771863226343,14.51477626,79.04,79.011,0.60339209]
[1771863227047,14.51477626,79.03,79.011,0.60339209]
[1771863227248,14.51477626,79.03,79.0,14.51477626]
[1771863227453,12.65358286,79.029,78.998,0.60339209]
[1771863227961,12.65358286,79.029,78.977,0.61489143]
[1771863227962,14.51477626,79.01,78.977,0.61489143]
[1771863228141,14.51477626,78.99,78.965,0.61489143]
[1771863228333,14.51477626,79.0,78.965,0.61489143]
[1771863228835,0.57121388,79.028,78.981,0.61489143]
[1771863229033,3.69383402,79.017,78.981,0.61489143]
[1771863229266,14.51477626,79.01,78.981,0.61489143]
[1771863229941,12.65678593,79.009,78.981,0.61489143]
[1771863230142,12.65678593,79.009,78.983,0.61489143]
[1771863231360,12.65678593,79.009,78.971,0.61489143]
[1771863231662,12.65678593,79.009,78.981,0.61489143]
[1771863231958,50.58705891,79.072,78.97,0.61489143]
[1771863231959,12.65838808,78.999,78.97,0.61489143]
[1771863232164,12.65838808,78.999,78.96,14.51477626]
[1771863232165,14.51477626,78.99,78.96,0.61489143]
[1771863232371,0.57541974,78.998,78.962,0.61489143]
[1771863232549,14.51477626,78.99,78.962,0.61489143]
[1771863233662,3.69383402,79.017,78.981,0.61489143]
[1771863233859,15.09292001,79.02,78.981,0.61489143]
[1771863234467,12.65518419,79.019,78.99,14.51477626]
[1771863234665,12.65518419,79.019,78.99,15.12966769]
[1771863234962,12.65518419,79.019,78.99,0.61489143]
[1771863235162,44.29314468,79.019,78.99,0.61489143]
[1771863236669,44.87525824,79.019,78.981,0.61489143]
[1771863236969,0.58211356,79.055,79.01,14.51477626]
[1771863237267,14.51477626,79.04,79.009,0.61489143]
[1771863237944,14.51477626,79.04,79.01,14.51477626]
[1771863238144,14.51477626,79.04,79.011,0.61489143]
[1771863238359,0.58211356,79.045,79.011,0.61489143]
[1771863238565,58.79081506,79.05,79.02,15.12966769]
[1771863238945,58.79081506,79.05,79.02,0.61489143]
[1771863239461,27.16499763,79.05,79.02,15.12966769]
[1771863239667,27.16499763,79.05,79.021,0.61489143]
[1771863240057,50.58494052,79.075,79.011,12.6563867]
[1771863240058,0.58719708,79.087,79.04,14.51477626]
[1771863240263,12.64558226,79.079,79.04,14.51477626]
[1771863240565,12.64446298,79.086,79.051,0.61489143]
[1771863240770,14.51477626,79.07,79.041,0.61489143]
[1771863240981,14.51477626,79.07,79.015,31.63918447]
[1771863240982,0.58719708,79.059,79.023,0.61489143]
[1771863241166,0.58719708,79.068,79.03,15.12966769]
[1771863241470,14.51477626,79.06,79.03,0.61489143]
[1771863241845,14.51477626,79.04,79.011,0.61489143]
[1771863242050,0.58843168,79.039,79.001,0.61489143]
[1771863242376,0.58843168,79.039,79.0,14.51477626]
[1771863242377,14.51477626,79.02,78.983,0.61489143]
[1771863242549,44.29314468,79.019,78.983,0.61489143]
[1771863242877,14.51477626,79.01,78.984,0.61489143]
[1771863243170,44.29314468,79.019,78.991,0.5]
[1771863243469,14.51477626,79.01,78.991,0.5]
[1771863243662,14.51477626,79.01,78.973,12.66241383]
[1771863243663,14.51477626,79.0,78.968,0.61489143]
[1771863243864,14.01477626,78.98,78.95,14.51477626]
[1771863244758,12.65870855,78.997,78.96,14.51477626]
[1771863244964,14.51477626,78.99,78.96,14.51477626]
[1771863245967,14.51477626,78.99,78.961,0.61489143]
[1771863246269,0.60481185,78.989,78.952,0.61489143]
[1771863246570,14.51477626,78.99,78.952,0.61489143]
[1771863246771,12.65999063,78.989,78.954,0.61489143]
[1771863247454,14.51477626,79.0,78.971,0.61489143]
[1771863248158,12.65694613,79.008,78.971,0.61489143]
[1771863248357,14.51477626,79.0,78.971,0.61489143]
[1771863249161,12.65838808,78.999,78.971,0.61489143]
[1771863249560,14.51477626,78.99,78.971,0.61489143]
[1771863249763,14.51477626,78.98,78.95,14.51477626]
[1771863250067,14.51477626,78.98,78.933,5.36086188]
[1771863250068,14.51477626,78.98,78.951,0.61489143]
[1771863250272,14.51477626,78.96,78.931,0.61489143]
[1771863250478,0.60481185,78.969,78.931,0.61489143]
[1771863250479,14.51477626,78.95,78.931,0.61489143]
[1771863250850,14.51477626,78.96,78.931,0.61489143]
[1771863251264,12.66480071,78.959,78.931,0.61489143]
[1771863251447,14.5511634,78.97,78.935,0.61489143]
[1771863251650,12.66319695,78.969,78.935,0.61489143]
[1771863253468,12.66120336,78.982,78.951,0.61489143]
[1771863254259,14.5511634,78.98,78.951,0.61489143]
[1771863254771,12.66120336,78.982,78.951,0.61489143]
[1771863254976,14.5511634,78.98,78.951,0.61489143]
[1771863255178,12.66120336,78.982,78.951,0.61489143]
[1771863255551,12.65999063,78.989,78.952,0.61489143]
[1771863255756,31.64727233,78.996,78.951,12.66601708]
[1771863255757,3.69383402,78.997,78.961,0.61489143]
[1771863256250,4.29864587,78.997,78.961,0.61489143]
[1771863257557,0.60481185,78.997,78.961,0.61489143]
[1771863257758,12.6588688,78.996,78.963,0.66296602]
[1771863258574,14.5511634,78.99,78.961,1.16296602]
[1771863258781,44.3060408,78.996,78.971,0.5]
[1771863258977,12.6588688,78.996,78.971,1.16296602]
[1771863259177,14.5511634,79.01,78.981,0.66296602]
[1771863259374,14.5511634,79.01,78.971,0.5]
[1771863259375,0.67096842,79.008,78.972,0.66296602]
[1771863259676,0.62690421,78.999,78.972,12.66257254]
[1771863259856,0.62690421,78.999,78.971,0.5]
[1771863260575,0.62690421,78.999,78.971,13.16278472]
[1771863260962,14.5511634,79.0,78.971,13.83197432]
[1771863261364,12.65710633,79.007,78.972,0.6691896]
[1771863262269,12.65710633,79.007,78.974,0.6691896]
[1771863263479,31.63818564,79.019,78.981,0.6691896]
[1771863263680,0.62690421,79.024,78.991,0.6691896]
[1771863263872,50.5893662,79.068,79.001,0.6691896]
[1771863263873,12.65358286,79.029,79.001,0.6691896]
[1771863264383,13.27991894,79.033,79.002,12.65790739]
[1771863264583,12.65238024,79.037,79.011,0.6691896]
[1771863264787,12.65070148,79.047,79.011,0.6691896]
[1771863264988,12.65070148,79.047,79.02,14.5511634]
[1771863265162,0.62690421,79.039,79.01,0.6691896]
[1771863265472,0.62690421,79.039,79.011,0.6691896]
[1771863265885,14.5511634,79.03,79.002,0.6691896]
[1771863266091,14.5511634,79.02,78.991,0.6691896]
[1771863266383,14.5511634,79.02,78.971,0.5]
[1771863266384,14.5511634,79.01,78.976,0.6691896]
[1771863266584,12.65518419,79.019,78.971,0.5]
[1771863266585,14.5511634,79.0,78.971,0.5]
[1771863266767,14.5511634,79.0,78.972,12.66271589]
[1771863267169,14.5511634,79.0,78.971,0.5]
[1771863267571,14.5511634,78.99,78.971,0.5]
[1771863268266,14.5511634,78.98,78.948,0.6691896]
[1771863268467,12.66159358,78.979,78.95,14.5511634]
[1771863269065,12.66159358,78.979,78.948,0.6691896]
[1771863269066,12.66159358,78.979,78.949,0.6691896]
[1771863269486,12.66159358,78.979,78.946,12.66683844]
[1771863269487,14.5511634,78.96,78.951,1e-08]
[1771863269875,14.5511634,78.95,78.922,0.6691896]
[1771863270581,158.26991984,78.979,78.78,123.30854309]
[1771863270582,14.5511634,78.94,78.912,0.6691896]
[1771863271780,14.5511634,78.92,78.891,0.6691896]
[1771863272180,0.62690421,78.929,78.891,0.6691896]
[1771863272571,12.66977498,78.928,78.891,0.6691896]
[1771863272771,14.5511634,78.92,78.891,0.6691896]
[1771863273188,14.5511634,78.91,78.881,0.6691896]
[1771863273694,0.62690421,78.919,78.881,0.6691896]
[1771863273891,14.5511634,78.91,78.881,0.6691896]
[1771863274481,12.67282565,78.909,78.881,0.6691896]
[1771863275576,12.67282565,78.909,78.88,0.2]
[1771863275577,14.5511634,78.9,78.88,0.2]
[1771863275790,0.5,78.92,78.88,0.2]
[1771863275791,12.67154098,78.917,78.881,0.6691896]
[1771863275983,13.17117923,78.92,78.891,0.6691896]
[1771863276500,0.5,78.93,78.902,12.67394996]
[1771863276677,0.5,78.93,78.911,0.6691896]
[1771863277687,12.66961446,78.929,78.911,0.6691896]
[1771863278099,12.66961446,78.929,78.9,0.6691896]
[1771863278300,15.17806761,78.92,78.89,0.6691896]
[1771863278594,14.5511634,78.91,78.882,0.6691896]
[1771863278803,0.62690421,78.918,78.882,0.6691896]
[1771863279109,27.72066417,78.93,78.891,0.6691896]
[1771863279283,14.5511634,78.92,78.891,0.6691896]
[1771863279605,14.5511634,78.92,78.881,44.37063424]
[1771863279606,15.17806761,78.92,78.881,0.6691896]
[1771863279788,15.17806761,78.92,78.882,0.6691896]
[1771863281485,14.5511634,78.91,78.882,0.6691896]
[1771863281685,44.34926949,78.919,78.88,0.2]
[1771863281686,14.5511634,78.9,78.88,0.2]
[1771863281901,14.5511634,78.89,78.87,0.2]
[1771863282285,14.5511634,78.91,78.871,0.6691896]
[1771863282487,14.5511634,78.91,78.872,0.6691896]
[1771863282901,0.62690421,78.913,78.872,0.6691896]
[1771863283087,14.5511634,78.91,78.872,0.6691896]
[1771863283289,0.62690421,78.918,78.872,0.6691896]
[1771863283509,14.5511634,78.91,78.872,0.6691896]
[1771863283805,12.67282565,78.909,78.874,0.6691896]
[1771863284589,44.35488979,78.909,78.874,0.6691896]
[1771863284994,12.67154098,78.917,78.881,0.6691896]
[1771863285585,12.67138042,78.918,78.881,0.6691896]
[1771863285909,12.67138042,78.918,78.883,0.6691896]
[1771863286893,12.67138042,78.918,78.89,14.5511634]
[1771863287212,14.5511634,78.91,78.883,0.6691896]
[1771863288507,12.67282565,78.909,78.883,0.6691896]
[1771863289719,12.67282565,78.909,78.87,46.44871928]
[1771863289720,0.65422907,78.899,78.87,0.2]
[1771863289896,14.5511634,78.9,78.871,0.6475242]
[1771863291012,14.5511634,78.9,78.87,0.2]
[1771863291013,14.5511634,78.89,78.87,0.2]
[1771863291312,44.36051153,78.899,78.871,0.6475242]
[1771863291514,12.67443186,78.899,78.871,0.6475242]
[1771863291900,12.67314686,78.907,78.88,14.5511634]
[1771863292095,0.65422907,78.916,78.881,0.6475242]
[1771863292096,12.67170155,78.916,78.881,0.6475242]
[1771863292296,44.35095544,78.916,78.881,0.6475242]
[1771863293515,12.67170155,78.916,78.891,0.6475242]
[1771863293716,32.3302027,78.925,78.882,12.67716335]
[1771863293717,57.12,78.994,78.901,0.6475242]
[1771863294019,57.12,78.994,78.882,44.37007174]
[1771863294020,0.65422907,78.929,78.892,0.6475242]
[1771863294202,14.5511634,78.92,78.892,0.6475242]
[1771863294405,0.65422907,78.929,78.892,0.6475242]
[1771863294712,14.5511634,78.92,78.892,0.6475242]
[1771863296199,14.5511634,78.92,78.882,44.37007174]
[1771863296200,14.5511634,78.92,78.894,0.6475242]
[1771863296898,12.67121985,78.919,78.894,0.6475242]
[1771863297300,12.67014902,78.926,78.894,0.6475242]
[1771863298099,15.0511634,78.93,78.895,12.67507446]
[1771863298297,0.5,78.93,78.896,0.6475242]
[1771863299120,0.5,78.93,78.901,0.6475242]
[1771863299316,19.26342622,78.963,78.921,0.6475242]
[1771863299518,14.5511634,78.97,78.923,0.6475242]
[1771863299701,14.5511634,78.97,78.931,0.6475242]
[1771863299702,27.21423842,78.97,78.931,0.6475242]
[1771863300021,14.5511634,78.98,78.931,0.6475242]
[1771863300198,12.66182968,78.978,78.931,0.6475242]
[1771863300401,12.66182968,78.978,78.934,0.6475242]
[1771863300402,0.65422907,78.969,78.934,0.6475242]
[1771863301116,0.65422907,78.969,78.932,12.66907548]
[1771863301316,14.5511634,78.96,78.933,0.6475242]
[1771863301802,14.5511634,78.97,78.933,0.6475242]
[1771863302519,31.65398397,78.979,78.895,101.40059572]
[1771863302520,14.5511634,78.96,78.935,0.6475242]
[1771863302721,12.66319695,78.969,78.935,0.6475242]
[1771863302722,0.65422907,78.969,78.935,0.6475242]
[1771863302919,0.65422907,78.969,78.895,101.40059572]
[1771863302920,14.5511634,78.95,78.913,0.6475242]
[1771863303216,14.5511634,78.95,78.916,0.6475242]
[1771863303413,14.5511634,78.96,78.916,0.6475242]
[1771863303621,14.5511634,78.97,78.923,0.6475242]
[1771863303818,0.65422907,78.977,78.931,0.6475242]
[1771863304327,0.65422907,78.967,78.932,13.31665712]
[1771863304542,14.5511634,78.96,78.932,13.31665712]
[1771863304842,0.65422907,78.967,78.933,0.6475242]
[1771863305318,14.5511634,78.96,78.933,0.6475242]
[1771863305632,15.20539247,78.96,78.933,0.6475242]
[1771863305824,12.6633573,78.968,78.933,0.6475242]
[1771863306015,0.65422907,78.969,78.933,0.6475242]
[1771863306330,15.20539247,78.98,78.934,44.3408417]
[1771863306530,14.5511634,78.97,78.941,0.6475242]
[1771863306709,14.5511634,78.97,78.934,12.66881191]
[1771863306710,0.65422907,78.969,78.934,12.66881191]
[1771863306909,14.5511634,78.96,78.934,12.66881191]
[1771863307131,15.20539247,78.96,78.931,0.6475242]
[1771863307330,0.65422907,78.969,78.935,0.6475242]
[1771863307534,14.5511634,78.97,78.935,0.6475242]
[1771863308130,15.20539247,78.97,78.935,0.6475242]
[1771863308511,15.20539247,78.97,78.937,0.6475242]
[1771863308726,26.9,78.997,78.941,0.6475242]
[1771863308727,0.65422907,78.988,78.941,0.6475242]
[1771863309418,0.65422907,78.997,78.951,0.6475242]
[1771863309609,12.65838808,78.999,78.961,0.6475242]
[1771863309848,0.2,79.0,78.961,0.6475242]
[1771863310131,0.65422907,78.998,78.961,0.6475242]
[1771863310334,0.65422907,78.989,78.951,0.6475242]
[1771863310833,13.31437997,78.988,78.953,0.6475242]
[1771863311215,0.65422907,78.987,78.953,0.6475242]
[1771863311412,0.65422907,78.969,78.939,31.66988155]
[1771863311716,0.65422907,78.969,78.936,12.66849092]
[1771863311914,0.65422907,78.979,78.945,1.1475242]
[1771863312333,0.65422907,78.979,78.946,0.6475242]
[1771863312712,0.65422907,78.979,78.955,0.5]
[1771863312913,27.2126948,78.98,78.956,0.6475242]
[1771863313140,58.86627798,78.98,78.955,0.5]
[1771863313441,0.65422907,78.979,78.955,0.5]
[1771863315033,14.54207467,78.97,78.955,0.5]
[1771863315212,0.65422907,78.977,78.955,0.5]
[1771863316124,0.65422907,78.995,78.961,0.6475242]
[1771863316319,26.9,78.994,78.961,0.6475242]
[1771863316638,27.40034421,79.0,78.961,0.6475242]
[1771863317019,27.40034421,79.0,78.955,0.5]
[1771863317020,0.2,79.0,78.971,0.6475242]
[1771863317534,38.04,79.051,78.962,44.3251184]
[1771863317535,57.12,79.096,78.972,0.6475242]
[1771863317744,104.2,79.15,79.08,29.08414934]
[1771863317745,1e-08,79.15,79.08,29.08414934]
[1771863318039,14.64207467,79.26,79.08,29.08414934]
[1771863318040,0.70894688,79.203,79.144,5.36086188]
[1771863318329,0.70894688,79.203,79.17,14.54207467]
[1771863318530,0.70894688,79.203,79.16,14.54207467]
[1771863318731,44.17797412,79.225,79.16,14.54207467]
[1771863318732,0.68141878,79.199,79.16,14.54207467]
[1771863318938,0.68141878,79.199,79.086,57.08]
[1771863318939,12.62817598,79.188,79.142,12.6355159]
[1771863319230,50.49482902,79.217,79.142,12.6355159]
[1771863319231,0.68141878,79.179,79.15,14.54207467]
[1771863319528,0.68141878,79.19,79.16,14.54207467]
[1771863319833,0.68141878,79.19,79.142,49.58516755]
[1771863319834,0.68141878,79.19,79.17,14.54207467]
[1771863320036,0.65046848,79.179,79.103,0.69174286]
[1771863320234,14.54207467,79.15,79.087,12.6443031]
[1771863320413,0.65046848,79.139,79.094,5.36086188]
[1771863320733,0.65046848,79.139,79.1,14.54207467]
[1771863320934,0.65046848,79.139,79.11,14.54207467]
[1771863321245,13.28648575,79.139,79.11,14.54207467]
[1771863321640,50.52326442,79.172,79.11,14.54207467]
[1771863321641,0.65046848,79.163,79.13,14.54207467]
[1771863321830,0.65046848,79.139,79.11,14.54207467]
[1771863322209,0.65046848,79.139,79.12,14.54207467]
[1771863322732,0.65046848,79.149,79.12,14.54207467]
[1771863322935,0.65046848,79.147,79.107,5.36086188]
[1771863323128,0.65046848,79.139,79.11,14.54207467]
[1771863323528,0.65046848,79.139,79.1,14.54207467]
[1771863323731,0.65046848,79.139,79.11,14.54207467]
[1771863324234,0.65046848,79.139,79.1,14.54207467]
[1771863324615,14.54207467,79.12,79.085,0.69174286]
[1771863324812,0.65046848,79.119,79.09,14.54207467]
[1771863325540,12.63934882,79.118,79.09,14.54207467]
[1771863325734,14.54207467,79.11,79.08,14.54207467]
[1771863326038,0.15046848,79.099,79.061,12.64846131]
[1771863326218,0.15046848,79.099,79.07,14.54207467]
[1771863326537,14.54207467,79.12,79.09,14.54207467]
[1771863326735,14.54207467,79.12,79.08,14.54207467]
[1771863327115,14.54207467,79.13,79.1,14.54207467]
[1771863327325,12.63759178,79.129,79.1,14.54207467]
[1771863327631,44.23157123,79.129,79.083,0.69174286]
[1771863327841,14.54207467,79.12,79.09,14.54207467]
[1771863328048,0.65046848,79.119,79.083,0.69174286]
[1771863328624,0.65046848,79.119,79.071,0.69174286]
[1771863328625,14.54207467,79.11,79.071,0.69174286]
[1771863328930,14.54207467,79.11,79.08,14.54207467]
[1771863329129,0.65046848,79.119,79.08,14.54207467]
[1771863329536,14.54207467,79.11,79.08,14.54207467]
[1771863329745,12.63934882,79.118,79.09,14.54207467]
[1771863329930,14.54207467,79.11,79.08,15.23381753]
[1771863330249,14.54207467,79.11,78.97,8.18064631]
[1771863330250,0.65046848,79.109,79.07,15.23381753]
[1771863330626,50.5429514,79.141,79.07,15.23381753]
[1771863330627,0.65046848,79.153,79.101,0.69174286]
[1771863330842,0.65046848,79.153,79.08,14.54207467]
[1771863330843,0.65046848,79.139,79.11,14.54207467]
[1771863331136,0.65046848,79.149,79.12,14.54207467]
[1771863331537,38.04,79.18,79.097,5.36086188]
[1771863331538,0.65046848,79.139,79.11,14.54207467]
[1771863331737,0.65046848,79.139,79.12,14.54207467]
[1771863331942,0.65046848,79.139,79.11,14.54207467]
[1771863332643,0.65046848,79.139,79.1,14.54207467]
[1771863332829,0.65046848,79.139,79.11,14.54207467]
[1771863333026,12.63455804,79.148,79.12,14.54207467]
[1771863333224,12.63455804,79.148,79.111,0.69174286]
[1771863333225,0.65046848,79.158,79.13,14.54207467]
[1771863333539,50.51073906,79.192,79.151,0.69174286]
[1771863333540,0.65046848,79.192,79.151,0.69174286]
[1771863333741,0.65046848,79.192,79.132,68.54642523]
[1771863333742,0.65046848,79.189,79.141,0.69174286]
[1771863333942,0.65046848,79.189,79.137,5.36086188]
[1771863333943,0.65046848,79.202,79.17,14.54207467]
[1771863334144,0.65046848,79.202,79.18,14.54207467]
[1771863334447,0.65046848,79.208,79.153,0.69174286]
[1771863334632,0.65046848,79.189,79.16,14.54207467]
[1771863334942,15.19254315,79.2,79.17,14.54207467]
[1771863335143,0.65046848,79.199,79.17,14.54207467]
[1771863335646,0.65046848,79.18,79.16,14.54207467]
[1771863335848,15.19254315,79.17,79.14,14.54207467]
[1771863336149,94.69936107,79.198,79.13,14.54207467]
[1771863336150,0.65046848,79.159,79.13,14.54207467]
[1771863336525,0.65046848,79.159,79.14,14.54207467]
[1771863336731,0.65046848,79.169,79.14,14.54207467]
[1771863337147,0.65046848,79.169,79.13,14.54207467]
[1771863337445,0.65046848,79.16,79.14,14.54207467]
[1771863337769,0.65046848,79.16,79.091,101.14857302]
[1771863337770,0.65046848,79.149,79.12,14.54207467]
[1771863338099,0.65046848,79.183,79.141,0.69174286]
[1771863338228,0.65046848,79.169,79.121,12.63886957]
[1771863338428,14.54207467,79.2,79.101,0.69174286]
[1771863338429,0.65046848,79.147,79.101,0.69174286]
[1771863338640,0.65046848,79.149,79.111,0.69174286]
[1771863338830,14.54207467,79.14,79.111,0.69174286]
[1771863339026,0.65046848,79.139,79.101,0.69174286]
[1771863339648,12.63759178,79.129,79.1,14.54207467]
[1771863339845,0.65046848,79.128,79.094,12.64307406]
[1771863340046,0.65046848,79.128,79.1,14.54207467]
[1771863340426,0.65046848,79.128,79.094,12.64307406]
[1771863340633,0.65046848,79.128,78.854,34.60225913]
[1771863340634,14.54207467,79.11,79.081,0.69174286]
[1771863340852,12.63759178,79.129,79.091,0.69174286]
[1771863341034,14.54207467,79.12,79.091,0.69174286]
[1771863341234,0.65046848,79.125,79.09,14.54207467]
[1771863341554,12.6366336,79.135,79.1,14.54207467]
[1771863341760,12.6366336,79.135,79.101,12.6420652]
[1771863341985,0.65046848,79.136,79.11,14.54207467]
[1771863342179,0.65046848,79.136,79.101,12.6420652]
[1771863342389,0.65046848,79.136,79.11,14.54207467]
[1771863342585,27.17793913,79.14,79.11,14.54207467]
[1771863342785,27.17793913,79.14,79.102,0.69174286]
[1771863342961,0.65046848,79.139,79.102,0.69174286]
[1771863343161,0.65046848,79.129,79.101,12.6420652]
[1771863344166,0.65046848,79.127,79.096,12.64273503]
[1771863344371,0.65046848,79.127,79.1,14.54207467]
[1771863345498,0.65046848,79.127,79.096,12.64273503]
[1771863345961,0.65046848,79.127,79.091,12.64366362]
[1771863346386,0.65046848,79.127,79.1,14.54207467]
[1771863347590,0.65046848,79.119,79.091,12.64366362]
[1771863347767,12.63807092,79.126,79.092,0.70954831]
[1771863347962,0.69650827,79.125,79.093,12.64334391]
[1771863348187,14.54207467,79.12,79.093,12.64334391]
[1771863348385,0.69650827,79.135,79.094,0.70954831]
[1771863348571,0.69650827,79.135,79.093,44.25170368]
[1771863348572,0.69650827,79.135,79.101,0.70954831]
[1771863349087,12.63679328,79.134,79.101,0.70954831]
[1771863349886,12.63679328,79.134,79.11,14.54207467]
[1771863350475,0.69650827,79.135,79.111,12.64046719]
[1771863351689,0.69650827,79.135,79.101,0.70954831]
[1771863351690,0.69650827,79.134,79.101,0.70954831]
[1771863351897,12.63676139,79.135,79.091,12.64366362]
[1771863351898,0.69650827,79.119,79.091,12.64366362]
[1771863352390,14.54207467,79.11,79.073,0.70954831]
[1771863352567,15.23858294,79.1,79.07,14.54207467]
[1771863352772,15.23858294,79.1,79.07,15.25162298]
[1771863352773,0.69650827,79.1,79.07,15.25162298]
[1771863352990,0.69650827,79.109,79.08,14.54207467]
[1771863353192,0.69650827,79.109,79.071,0.70954831]
[1771863353488,14.54207467,79.1,79.071,0.70954831]
[1771863353682,0.69650827,79.104,79.071,0.70954831]
[1771863354270,0.69650827,79.104,79.041,94.88746345]
[1771863354271,15.23858294,79.09,79.06,14.54207467]
[1771863354492,15.23858294,79.09,79.012,50.62510361]
[1771863354493,0.69650827,79.089,79.051,12.65006135]
[1771863354974,12.64174557,79.103,79.07,14.54207467]
[1771863354975,0.69650827,79.098,79.07,14.54207467]
[1771863355176,0.69650827,79.098,79.061,0.70954831]
[1771863356372,0.69650827,79.098,79.062,44.26905466]
[1771863356781,0.69650827,79.098,79.07,14.54207467]
[1771863357102,15.23858294,79.09,79.062,13.35784964]
[1771863357276,12.6426296,79.098,79.054,12.64958129]
[1771863357277,15.23858294,79.08,79.054,12.64958129]
[1771863357470,0.69650827,79.08,79.054,12.64958129]
[1771863357885,14.54207467,79.07,79.04,14.54207467]
[1771863358088,0.69650827,79.069,79.033,0.70954831]
[1771863358407,14.54207467,79.08,79.051,0.70954831]
[1771863358580,14.54207467,79.07,79.041,0.70954831]
[1771863358780,14.54207467,79.07,79.042,12.65150173]
[1771863359082,0.69650827,79.059,79.03,14.74207467]
[1771863359280,0.69650827,79.059,79.03,0.2]
[1771863359598,14.54207467,79.05,79.03,0.2]
[1771863359777,0.69650827,79.059,79.031,12.65326264]
[1771863360292,0.69650827,79.049,79.03,0.2]
[1771863360623,0.69650827,79.059,79.031,12.65326264]
[1771863361493,0.69650827,79.059,79.031,13.36281095]